[Event "FIDE WCCC Girls-10 2024"]
[Site "Montesilvano"]
[Date "2024.11.22"]
[Round "7.2"]
[White "Tselmuun, Ider"]
[Black "Ahmadli, Mehriban"]
[Result "1-0"]
[Annotator "NA RC"]
[ECO "E63"]
[WhiteElo "1846"]
[BlackElo "1624"]
[PlyCount "141"]
[EventDate "2024.11.18"]
[EventType "swiss"]
[EventCountry "ITA"]
[SourceTitle "playchess.com"]
[Source "ChessBase"]
[SourceQuality "1"]
[TimeControl "5400+30"]

1. Nf3 {[%emt 0:00:07]} Nf6 {[%emt 0:00:10]} 2. g3 {[%emt 0:00:11]} g6 {[%emt 0:00:07]} 3. Bg2 {[%emt 0:00:16]} Bg7 {[%emt 0:00:20]} 4. c4 {[%emt 0:00:16]} O-O {[%emt 0:00:07]} 5. O-O {[%emt 0:00:27]} d6 {[%emt 0:00:47]} 6. d4 {[%emt 0:00:32]} Nc6 {[%emt 0:00:53]} 7. Nc3 {[%emt 0:00:34]} a6 {[%emt 0:00:12]} 8. b3 {[%emt 0:00:20]} Rb8 {[%emt 0:00:14]} 9. Bb2 {[%emt 0:00:38]} b5 {[%emt 0:03:12]} 10. cxb5 {[%emt 0:10:41]} axb5 {[%emt 0:00:10]} 11. Rc1 {[%emt 0:01:01]} Bd7 {[%emt 0:03:42]} 12. e3 {[%emt 0:00:23]} e6 {[%emt 0:03:19]} 13. Nd2 {[%emt 0:02:43]} Ne7 $11 {[%emt 0:05:04]} 14. Qc2 {[%emt 0:02:31]} h5 {[%emt 0:11:50]} 15. Nce4 {[%emt 0:01:48]} Nfd5 {[%emt 0:02:41]} 16. Nc3 {[%emt 0:04:58]} Nb4 {[%emt 0:02:01]} 17. Qb1 {[%emt 0:00:12]} Nbc6 {[%emt 0:00:35]} 18. Nf3 {[%emt 0:10:06]} Bh6 {[%emt 0:06:11]} 19. Rcd1 {[%emt 0:01:06]} Qc8 {[%emt 0:07:06]} 20. h4 {[%emt 0:08:35]} Qa6 {[%emt 0:00:35]} 21. Ne4 {[%emt 0:16:52]} Nd5 {[%emt 0:02:51]} 22. a3 {[%emt 0:05:34]} Bg7 {[%emt 0:04:27]} 23. Rfe1 {[%emt 0:01:50]} Rfd8 {[%emt 0:07:41]} 24. Bf1 {[%emt 0:00:22]} Qb7 {[%emt 0:02:54]} 25. Nfg5 {[%emt 0:01:54]} Ra8 {[%emt 0:06:02]} 26. Qd3 {[%emt 0:02:05]} Nce7 {[%emt 0:06:59]} 27. Rc1 {[%emt 0:02:16]} Rac8 {[%emt 0:02:54]} 28. Bg2 {[%emt 0:01:15]} Qb6 {[%emt 0:06:14]} 29. Nd2 {[%emt 0:04:07]} Rf8 {[%emt 0:06:35]} 30. e4 {[%emt 0:02:48]} Nf6 {[%emt 0:00:04]} 31. e5 {[%emt 0:00:08]} dxe5 {[%emt 0:00:41]} 32. dxe5 {[%emt 0:00:11]} Ng4 {[%emt 0:02:04]} 33. Nde4 {[%emt 0:11:05]} Nd5 {[%emt 0:01:23]} 34. Bd4 {[%emt 0:00:05]} Qb8 {[%emt 0:02:50]} 35. Nc5 {[%emt 0:00:23]} Nb6 {[%emt 0:02:15]} 36. Nxd7 {[%emt 0:05:43]} Nxd7 {[%emt 0:00:01]} 37. f4 {[%emt 0:01:23]} c5 {[%emt 0:00:35]} 38. Be3 {[%emt 0:01:42]} Rfd8 {[%emt 0:00:40]} 39. Qe2 {[%emt 0:00:10]} Bh8 {[%emt 0:03:00]} 40. Bh3 {[%emt 0:00:25]} Nxe3 {[%emt 0:01:04]} 41. Qxe3 {[%emt 0:00:08]} Qb6 {[%emt 0:00:00]} 42. Ne4 {[%emt 0:00:28]} c4 {[%emt 0:00:00]} 43. Nd6 {[%emt 0:00:25]} Rc6 {[%emt 0:00:34]} 44. bxc4 {[%emt 0:00:10]} Rxd6 {[%emt 0:00:25]} 45. c5 {[%emt 0:00:52]} Nxc5 {[%emt 0:00:28]} 46. exd6 {[%emt 0:01:01]} Qxd6 {[%emt 0:00:17]} 47. Kh1 {[%emt 0:02:30]} Bd4 {[%emt 0:00:29]} 48. Qf3 {[%emt 0:00:12]} Qa6 {[%emt 0:01:09]} 49. Red1 {[%emt 0:00:08]} Qb6 {[%emt 0:00:27]} 50. Bg2 {[%emt 0:00:30]} Rd5 {[%emt 0:00:37]} 51. g4 {[%emt 0:00:43]} hxg4 {[%emt 0:00:29]} 52. Qxg4 {[%emt 0:00:04]} Rd6 {[%emt 0:00:19]} 53. h5 {[%emt 0:00:07]} Kh7 {[%emt 0:00:04]} 54. hxg6+ {[%emt 0:00:11]} fxg6 {[%emt 0:00:02]} 55. f5 {[%emt 0:00:40]} e5 {[%emt 0:00:50]} 56. Qh4+ {[%emt 0:00:37]} Kg8 {[%emt 0:00:17]} 57. fxg6 {[%emt 0:00:30]} Rxg6 {[%emt 0:00:23]} 58. Bd5+ {[%emt 0:00:04]} Kg7 {[%emt 0:00:12]} 59. Qe7+ {[%emt 0:00:25]} Kh6 {[%emt 0:00:08]} 60. Rc2 {[%emt 0:00:41]} Bg1 {[%emt 0:00:27]} 61. Qh4+ {[%emt 0:01:12]} Kg7 {[%emt 0:00:17]} 62. Rxg1 {[%emt 0:00:24]} Rxg1+ {[%emt 0:00:13]} 63. Kxg1 {[%emt 0:00:05]} Nd3+ {[%emt 0:00:34]} 64. Kf1 {[%emt 0:00:16]} Nf4 {[%emt 0:00:25]} 65. Qe7+ {[%emt 0:00:15]} Kh6 {[%emt 0:00:16]} 66. Rc6+ {[%emt 0:00:25]} Qxc6 {[%emt 0:00:01]} 67. Bxc6 {[%emt 0:00:06]} Ng6 {[%emt 0:00:07]} 68. Qf6 {[%emt 0:00:05]} b4 {[%emt 0:00:04]} 69. Be4 {[%emt 0:00:04]} Kh7 {[%emt 0:00:07]} 70. Qxg6+ {[%emt 0:00:03]} Kh8 {[%emt 0:00:03]} 71. Qh7# {[%emt 0:00:06]} 1-0

[Event "FIDE WCCC Girls-10 2024"]
[Site "Montesilvano"]
[Date "2024.11.22"]
[Round "7.3"]
[White "Sholpanbek, Zhansaya"]
[Black "Nguyen Doan, Bao Anh Angelina"]
[Result "0-1"]
[Annotator "NA RC"]
[ECO "C54"]
[WhiteElo "1657"]
[BlackElo "1628"]
[PlyCount "114"]
[EventDate "2024.11.18"]
[EventType "swiss"]
[EventCountry "ITA"]
[SourceTitle "playchess.com"]
[Source "ChessBase"]
[SourceQuality "1"]
[TimeControl "5400+30"]

1. e4 {[%emt 0:01:51]} e5 {[%emt 0:00:07]} 2. Nf3 {[%emt 0:00:06]} Nc6 {[%emt 0:00:05]} 3. Bc4 {[%emt 0:00:21]} Bc5 {[%emt 0:00:12]} 4. d3 {[%emt 0:00:11]} Nf6 {[%emt 0:00:19]} 5. O-O {[%emt 0:00:42]} d6 {[%emt 0:00:05]} 6. c3 {[%emt 0:00:06]} a6 {[%emt 0:00:11]} 7. a4 {[%emt 0:00:48]} Ba7 {[%emt 0:00:11]} 8. Nbd2 {[%emt 0:07:38]} Qe7 {[%emt 0:03:34]} 9. b4 {[%emt 0:01:23]} Nd8 {[%emt 0:01:26]} 10. Re1 {[%emt 0:15:05]} Bg4 {[%emt 0:02:21]} 11. Nf1 {[%emt 0:02:49]} h5 {[%emt 0:12:46]} 12. h3 {[%emt 0:11:15]} Be6 {[%emt 0:00:33]} 13. Bxe6 {[%emt 0:05:37]} Nxe6 {[%emt 0:01:03]} 14. Ng3 {[%emt 0:10:45]} g6 {[%emt 0:01:47]} 15. d4 {[%emt 0:01:11]} O-O-O {[%emt 0:00:55]} 16. a5 {[%emt 0:05:15]} h4 {[%emt 0:07:08]} 17. Nf1 {[%emt 0:00:49]} Nh5 {[%emt 0:05:18]} 18. b5 {[%emt 0:03:22]} axb5 {[%emt 0:00:08]} 19. a6 {[%emt 0:07:08]} b6 {[%emt 0:01:50]} 20. Qb3 {[%emt 0:00:46]} c6 {[%emt 0:00:52]} 21. Qb4 {[%emt 0:10:21]} Nhf4 {[%emt 0:02:19]} 22. Bxf4 {[%emt 0:04:17]} Nxf4 {[%emt 0:01:28]} 23. Rad1 {[%emt 0:01:39]} Qc7 {[%emt 0:05:56]} 24. c4 {[%emt 0:03:00]} bxc4 {[%emt 0:01:18]} 25. Qxc4 {[%emt 0:00:13]} b5 {[%emt 0:01:10]} 26. Qb3 {[%emt 0:00:48]} exd4 {[%emt 0:01:12]} 27. Nxd4 {[%emt 0:00:36]} Bxd4 {[%emt 0:00:06]} 28. Qf3 {[%emt 0:02:00]} Ne6 {[%emt 0:00:20]} 29. Rc1 {[%emt 0:03:36]} Bc5 {[%emt 0:00:17]} 30. e5 {[%emt 0:01:03]} d5 {[%emt 0:00:59]} 31. Qg4 {[%emt 0:00:24]} Kb8 {[%emt 0:00:09]} 32. Nd2 {[%emt 0:00:13]} Qb6 {[%emt 0:00:39]} 33. Qf3 {[%emt 0:00:34]} Rd7 {[%emt 0:50:16]} 34. Nb3 {[%emt 0:00:29]} Ka7 {[%emt 0:00:00]} 35. Qf6 {[%emt 0:01:01]} Bb4 {[%emt 0:00:00]} 36. Qxh8 {[%emt 0:00:33]} Bxe1 {[%emt 0:00:00]} 37. Rxe1 {[%emt 0:00:13]} g5 {[%emt 0:00:00]} 38. Qf6 {[%emt 0:00:41]} c5 {[%emt 0:00:00]} 39. Nd2 {[%emt 0:00:38]} c4 {[%emt 0:00:00]} 40. Nf3 {[%emt 0:00:20]} d4 {[%emt 0:00:00]} 41. Nxg5 {[%emt 0:00:13]} Nxg5 {[%emt 0:00:00]} 42. Qxg5 {[%emt 0:00:04]} d3 {[%emt 0:00:00]} 43. Qf5 {[%emt 0:01:03]} Qe6 {[%emt 0:00:00]} 44. Qe4 {[%emt 0:00:38]} d2 {[%emt 0:00:00]} 45. Rd1 {[%emt 0:00:08]} Qd5 {[%emt 0:00:00]} 46. Qe3+ {[%emt 0:01:02]} Qd4 {[%emt 0:00:00]} 47. Qg5 {[%emt 0:00:09]} c3 {[%emt 0:00:00]} 48. Qf5 {[%emt 0:00:26]} Qd3 {[%emt 0:00:00]} 49. Qf4 {[%emt 0:00:35]} c2 {[%emt 0:00:00]} 50. e6 {[%emt 0:00:11]} cxd1=Q+ {[%emt 0:00:00]} 51. Kh2 {[%emt 0:00:04]} fxe6 {[%emt 0:00:00]} 52. Qg5 {[%emt 0:01:04]} Qd6+ {[%emt 0:00:00]} 53. f4 {[%emt 0:00:07]} Qe2 {[%emt 0:00:00]} 54. Qf6 {[%emt 0:01:24]} Qe3 {[%emt 0:00:00]} 55. Qa1 {[%emt 0:00:33]} Qdxf4+ {[%emt 0:00:00]} 56. Kh1 {[%emt 0:00:06]} d1=R+ {[%emt 0:00:00]} 57. Qxd1 {[%emt 0:00:06]} Rxd1# {[%emt 0:12:00]} 0-1

[Event "FIDE WCCC Girls-10 2024"]
[Site "Montesilvano"]
[Date "2024.11.22"]
[Round "7.4"]
[White "Pooja Shree R"]
[Black "Zhumambayeva Aliya"]
[Result "1-0"]
[Annotator "NA RC"]
[ECO "B10"]
[WhiteElo "1615"]
[BlackElo "1607"]
[PlyCount "107"]
[EventDate "2024.11.18"]
[EventType "swiss"]
[EventCountry "ITA"]
[SourceTitle "playchess.com"]
[Source "ChessBase"]
[SourceQuality "1"]
[TimeControl "5400+30"]

1. e4 {[%emt 0:00:06]} c6 {[%emt 0:00:07]} 2. Nf3 {[%emt 0:00:10]} d5 {[%emt 0:00:05]} 3. exd5 {[%emt 0:00:33]} cxd5 {[%emt 0:00:05]} 4. Ne5 {[%emt 0:00:17]} e6 {[%emt 0:03:29]} 5. d4 {[%emt 0:02:21]} Bd6 {[%emt 0:02:55]} 6. Nd2 {[%emt 0:12:59]} Bxe5 {[%emt 0:03:36]} 7. dxe5 {[%emt 0:00:10]} Ne7 {[%emt 0:04:20]} 8. Nf3 {[%emt 0:00:59]} Nbc6 {[%emt 0:01:51]} 9. Bd3 {[%emt 0:05:36]} Ng6 {[%emt 0:05:53]} 10. Qe2 {[%emt 0:01:23]} Qc7 {[%emt 0:02:35]} 11. Bxg6 {[%emt 1:11:26]} hxg6 {[%emt 0:00:52]} 12. O-O {[%emt 0:00:00]} Bd7 {[%emt 0:02:25]} 13. b3 {[%emt 0:00:00]} Rh5 {[%emt 0:06:52]} 14. g4 {[%emt 0:00:00]} Rh8 {[%emt 0:03:22]} 15. Ba3 {[%emt 0:00:00]} Qb6 {[%emt 0:08:21]} 16. Rfd1 {[%emt 0:00:00]} O-O-O {[%emt 0:03:22]} 17. Bd6 {[%emt 0:00:00]} Na5 {[%emt 0:11:27]} 18. c4 {[%emt 0:00:00]} Qa6 {[%emt 0:11:25]} 19. Rac1 {[%emt 0:00:00]} Bc6 {[%emt 0:06:00]} 20. Nd4 {[%emt 0:00:00]} Rh3 {[%emt 0:14:16]} 21. cxd5 {[%emt 0:00:00]} Qxe2 {[%emt 0:00:47]} 22. Nxe2 {[%emt 0:00:00]} exd5 {[%emt 0:01:17]} 23. Rxd5 {[%emt 0:00:00]} Rdh8 {[%emt 0:02:49]} 24. e6 {[%emt 0:00:00]} Nxb3 {[%emt 0:03:03]} 25. axb3 {[%emt 0:00:00]} fxe6 {[%emt 0:00:19]} 26. Ra5 {[%emt 0:00:00]} Rxb3 {[%emt 0:01:04]} 27. Rxa7 {[%emt 0:00:00]} Kd7 {[%emt 0:00:20]} 28. Be5 {[%emt 0:00:00]} Rg8 {[%emt 0:00:52]} 29. Nd4 {[%emt 0:00:00]} Rb6 {[%emt 0:00:22]} 30. Rxc6 {[%emt 0:00:00]} Rxc6 {[%emt 0:00:21]} 31. Rxb7+ {[%emt 0:00:00]} Kc8 {[%emt 0:00:40]} 32. Rb8+ {[%emt 0:00:00]} Kd7 {[%emt 0:00:04]} 33. Nxc6 {[%emt 0:00:00]} Rxb8 {[%emt 0:00:14]} 34. Nxb8+ {[%emt 0:00:00]} Ke7 {[%emt 0:00:12]} 35. Bxg7 {[%emt 0:00:00]} Kf7 {[%emt 0:00:04]} 36. Be5 {[%emt 0:00:00]} g5 {[%emt 0:00:09]} 37. f4 {[%emt 0:00:00]} Kg6 {[%emt 0:00:06]} 38. Nd7 {[%emt 0:00:00]} gxf4 {[%emt 0:00:08]} 39. Bxf4 {[%emt 0:00:00]} e5 {[%emt 0:00:24]} 40. Nxe5+ {[%emt 0:00:00]} Kf6 {[%emt 0:00:04]} 41. g5+ {[%emt 0:00:00]} Kg7 {[%emt 0:00:19]} 42. g6 {[%emt 0:00:00]} Kg8 {[%emt 0:00:13]} 43. Bh6 {[%emt 0:00:00]} Kh8 {[%emt 0:00:06]} 44. g7+ {[%emt 0:00:00]} Kg8 {[%emt 0:00:04]} 45. Nc6 {[%emt 0:00:00]} Kf7 {[%emt 0:00:14]} 46. Ne7 {[%emt 0:00:00]} Ke6 {[%emt 0:00:20]} 47. g8=Q+ {[%emt 0:00:00]} Ke5 {[%emt 0:00:07]} 48. Qg5+ {[%emt 0:00:00]} Kd6 {[%emt 0:00:12]} 49. Nc8+ {[%emt 0:00:00]} Kd7 {[%emt 0:00:11]} 50. Qf5+ {[%emt 0:00:00]} Kc7 {[%emt 0:00:07]} 51. Bf4+ {[%emt 0:00:00]} Kd8 {[%emt 0:00:08]} 52. Qd5+ {[%emt 0:00:00]} Ke8 {[%emt 0:00:15]} 53. Qe6+ {[%emt 0:00:00]} Kd8 {[%emt 0:00:21]} 54. Qe7+ {[%emt 0:00:00]} 1-0

[Event "FIDE WCCC Girls-10 2024"]
[Site "Montesilvano"]
[Date "2024.11.22"]
[Round "7.5"]
[White "Filippova, Milana"]
[Black "Yang, Aimee"]
[Result "1/2-1/2"]
[Annotator "NA RC"]
[ECO "B13"]
[WhiteElo "1687"]
[BlackElo "1864"]
[PlyCount "110"]
[EventDate "2024.11.18"]
[EventType "swiss"]
[EventCountry "ITA"]
[SourceTitle "playchess.com"]
[Source "ChessBase"]
[SourceQuality "1"]
[TimeControl "5400+30"]

1. e4 {[%emt 0:00:01]} c6 {[%emt 0:00:05]} 2. d4 {[%emt 0:00:07]} d5 {[%emt 0:00:05]} 3. exd5 {[%emt 0:00:12]} cxd5 {[%emt 0:00:07]} 4. c4 {[%emt 0:00:06]} Nf6 {[%emt 0:00:22]} 5. Nc3 {[%emt 0:00:12]} Nc6 {[%emt 0:00:21]} 6. Nf3 {[%emt 0:00:07]} Bg4 {[%emt 0:00:35]} 7. cxd5 {[%emt 0:00:49]} Nxd5 {[%emt 0:00:15]} 8. Qb3 {[%emt 0:00:05]} Bxf3 {[%emt 0:00:29]} 9. gxf3 {[%emt 0:00:07]} Nb6 {[%emt 0:00:30]} 10. Be3 {[%emt 0:00:45]} e6 {[%emt 0:00:44]} 11. O-O-O {[%emt 0:00:49]} Qc7 {[%emt 0:03:05] B13: Caro-Kann: Exchange Variation and Panov-Botvinnik Attack.} 12. Kb1 {[%emt 0:00:22]} g6 {[%emt 0:03:21]} 13. d5 {[%emt 0:03:02]} Nxd5 {[%emt 0:00:17]} 14. Nxd5 {[%emt 0:00:17]} exd5 {[%emt 0:00:33]} 15. Qc3 {[%emt 0:02:21]} Rg8 {[%emt 0:00:41]} 16. Re1 {[%emt 0:04:32]} O-O-O {[%emt 0:03:02]} 17. Bh3+ {[%emt 1:25:06]} f5 {[%emt 0:02:31]} 18. Qb3 {[%emt 0:00:00]} Be7 {[%emt 0:01:49]} 19. Rc1 {[%emt 0:00:00]} Kb8 $15 {[%emt 0:02:14]} 20. Rhd1 {[%emt 0:00:00]} Qd7 {[%emt 0:01:46]} 21. f4 {[%emt 0:00:00]} Bf6 {[%emt 0:31:15]} 22. Bg2 {[%emt 0:00:00]} Ne7 {[%emt 0:00:37]} 23. Rc5 {[%emt 0:00:00]} Qe6 {[%emt 0:47:16]} 24. Ra5 {[%emt 0:00:00]} a6 {[%emt 0:00:00]} 25. Bc5 {[%emt 0:00:00]} Rc8 {[%emt 0:00:00]} 26. Bxe7 {[%emt 0:00:00]} Qxe7 {[%emt 0:00:00]} 27. Rxa6 {[%emt 0:00:00]} Bh4 {[%emt 0:00:00]} 28. Bxd5 {[%emt 0:00:00]} Rgd8 {[%emt 0:00:00]} 29. Re6 {[%emt 0:00:00]} Qd7 {[%emt 0:00:00]} 30. f3 {[%emt 0:00:00]} Rc5 {[%emt 0:00:00]} 31. Rd6 {[%emt 0:00:00]} Qc7 {[%emt 0:01:51]} 32. Rxd8+ {[%emt 0:00:00]} Bxd8 {[%emt 0:00:04]} 33. Bxb7 {[%emt 0:00:00]} Ka7 {[%emt 0:01:29]} 34. Qa4+ {[%emt 0:00:00]} Kxb7 {[%emt 0:00:16]} 35. a3 {[%emt 0:00:00]} Kb8 {[%emt 0:01:32]} 36. Rxd8+ {[%emt 0:00:00]} Qxd8 {[%emt 0:00:19]} 37. Qb4+ {[%emt 0:00:00]} Ka8 {[%emt 0:00:26]} 38. Qxc5 {[%emt 0:00:00]} Qd3+ {[%emt 0:00:26]} 39. Ka2 {[%emt 0:00:00]} Qxf3 {[%emt 0:00:12]} 40. Qe5 {[%emt 0:00:00]} Qg2 {[%emt 0:00:23]} 41. Qh8+ {[%emt 0:00:00]} Ka7 {[%emt 0:00:24]} 42. Qxh7+ {[%emt 0:00:00]} Kb6 {[%emt 0:00:22]} 43. Qf7 {[%emt 0:00:40]} Ka6 {[%emt 0:00:58]} 44. a4 {[%emt 0:01:21]} Qe4 {[%emt 0:01:08]} 45. Qb3 {[%emt 0:01:56]} Qxf4 {[%emt 0:00:21]} 46. Qb5+ {[%emt 0:00:08]} Ka7 {[%emt 0:00:07]} 47. h3 {[%emt 0:01:38]} Qe4 {[%emt 0:00:17]} 48. a5 {[%emt 0:05:53]} f4 {[%emt 0:00:41]} 49. Qb6+ {[%emt 0:02:24]} Ka8 {[%emt 0:00:03]} 50. a6 {[%emt 0:01:08]} Qa4+ {[%emt 0:01:28]} 51. Kb1 {[%emt 0:00:18]} Qd1+ {[%emt 0:00:07]} 52. Ka2 {[%emt 0:00:24]} Qa4+ {[%emt 0:00:05]} 53. Kb1 {[%emt 0:00:12]} Qd1+ {[%emt 0:00:51]} 54. Ka2 {[%emt 0:00:08]} Qa4+ {[%emt 0:00:33]} 55. Kb1 {[%emt 0:00:07]} Qd1+ {[%emt 0:00:06]} 1/2-1/2

[Event "FIDE WCCC Girls-10 2024"]
[Site "Montesilvano"]
[Date "2024.11.22"]
[Round "7.6"]
[White "Tran Hoang Bao An"]
[Black "Cetin, Beren"]
[Result "0-1"]
[Annotator "NA RC"]
[ECO "E11"]
[WhiteElo "1714"]
[BlackElo "1658"]
[PlyCount "150"]
[EventDate "2024.11.18"]
[EventType "swiss"]
[EventCountry "ITA"]
[SourceTitle "playchess.com"]
[Source "ChessBase"]
[SourceQuality "1"]
[TimeControl "5400+30"]

1. d4 {[%emt 0:00:09]} Nf6 {[%emt 0:00:22]} 2. c4 {[%emt 0:01:10]} e6 {[%emt 0:00:55]} 3. g3 {[%emt 0:01:38]} Bb4+ {[%emt 0:02:40]} 4. Bd2 {[%emt 0:01:30]} Bxd2+ {[%emt 0:03:37]} 5. Nxd2 {[%emt 0:01:02]} d6 {[%emt 0:02:12]} 6. Ngf3 {[%emt 0:02:42]} a5 {[%emt 0:00:38]} 7. Bg2 {[%emt 0:01:58]} Nbd7 {[%emt 0:03:15]} 8. O-O {[%emt 0:02:32]} O-O {[%emt 0:02:39]} 9. Qc2 {[%emt 0:02:44]} Qe7 {[%emt 0:02:03]} 10. Nb1 {[%emt 0:03:55]} e5 {[%emt 0:02:33]} 11. Nc3 {[%emt 0:01:10]} c5 {[%emt 0:05:40]} 12. d5 {[%emt 0:04:26]} h6 {[%emt 0:01:31]} 13. Nd2 {[%emt 1:12:04]} Ne8 14. f4 {[%emt 0:00:00]} f5 {[%emt 0:12:02]} 15. e4 {[%emt 0:00:00]} fxe4 {[%emt 0:15:08]} 16. Ndxe4 {[%emt 0:00:00]} Ndf6 {[%emt 0:07:16]} 17. Rae1 {[%emt 0:00:00]} Nxe4 {[%emt 0:36:29]} 18. Nxe4 {[%emt 0:00:00]} exf4 {[%emt 0:00:00]} 19. Nxc5 {[%emt 0:00:00]} Qd8 {[%emt 0:00:00]} 20. Ne6 {[%emt 0:00:00]} Bxe6 {[%emt 0:00:00]} 21. dxe6 {[%emt 0:00:00]} Qb6+ {[%emt 0:00:00]} 22. Qf2 {[%emt 0:00:00]} Qxf2+ {[%emt 0:00:00]} 23. Rxf2 {[%emt 0:00:00]} fxg3 {[%emt 0:00:00]} 24. Rxf8+ {[%emt 0:00:00]} Kxf8 {[%emt 0:00:00]} 25. hxg3 {[%emt 0:00:00]} Ke7 {[%emt 0:00:00]} 26. Re2 {[%emt 0:00:00]} Rb8 {[%emt 0:00:00]} 27. Kf2 {[%emt 0:00:00]} Nc7 {[%emt 0:00:14]} 28. Bd5 {[%emt 0:00:00]} b5 {[%emt 0:01:51]} 29. b3 {[%emt 0:00:00]} Rf8+ {[%emt 0:00:29]} 30. Ke3 {[%emt 0:00:00]} Rf5 {[%emt 0:00:21]} 31. Kd4 {[%emt 0:00:00]} b4 {[%emt 0:00:24]} 32. a3 {[%emt 0:00:00]} Rg5 {[%emt 0:00:56]} 33. axb4 {[%emt 0:00:00]} axb4 {[%emt 0:00:31]} 34. Re3 {[%emt 0:00:00]} Rg4+ {[%emt 0:02:18]} 35. Kd3 {[%emt 0:00:00]} Rg5 {[%emt 0:00:41]} 36. Kd4 {[%emt 0:00:00]} Rg4+ {[%emt 0:00:05]} 37. Kd3 {[%emt 0:00:00]} Na6 {[%emt 0:00:31]} 38. Rf3 {[%emt 0:00:00]} Nc5+ {[%emt 0:00:06]} 39. Ke3 {[%emt 0:00:00]} Nxe6 {[%emt 0:00:31]} 40. Bxe6 {[%emt 0:00:00]} Kxe6 {[%emt 0:00:04]} 41. Kf2 {[%emt 0:00:00]} Rg5 {[%emt 0:00:21]} 42. Rd3 {[%emt 0:00:00]} Rf5+ {[%emt 0:00:16]} 43. Ke2 {[%emt 0:00:00]} g5 {[%emt 0:00:25]} 44. Rd4 {[%emt 0:00:00]} h5 {[%emt 0:00:25]} 45. Rd1 {[%emt 0:01:59]} Ra5 {[%emt 0:00:29]} 46. Rd3 {[%emt 0:01:46]} g4 {[%emt 0:01:35]} 47. Ke3 {[%emt 0:00:52]} Ke5 {[%emt 0:00:28]} 48. Rd4 {[%emt 0:00:11]} Ke6 {[%emt 0:00:16]} 49. Kf2 {[%emt 0:01:23]} Rf5+ {[%emt 0:00:05]} 50. Kg2 {[%emt 0:00:12]} Rf3 {[%emt 0:00:32]} 51. Re4+ {[%emt 0:00:05]} Kf6 {[%emt 0:00:30]} 52. Rd4 {[%emt 0:00:05]} Ke6 {[%emt 0:00:12]} 53. Rd5 {[%emt 0:00:14]} Rxb3 {[%emt 0:00:06]} 54. Rxh5 {[%emt 0:00:06]} Rb2+ {[%emt 0:00:04]} 55. Kf1 {[%emt 0:00:12]} Rc2 {[%emt 0:00:05]} 56. Rh6+ {[%emt 0:00:56]} Kd7 {[%emt 0:00:04]} 57. Rh7+ {[%emt 0:00:21]} Kc6 {[%emt 0:00:03]} 58. Rg7 {[%emt 0:00:15]} b3 {[%emt 0:00:09]} 59. Rg8 {[%emt 0:00:07]} b2 {[%emt 0:00:05]} 60. Rb8 {[%emt 0:00:06]} Rc1+ {[%emt 0:00:04]} 61. Kf2 {[%emt 0:00:06]} b1=Q {[%emt 0:00:09]} 62. Rxb1 {[%emt 0:00:02]} Rxb1 {[%emt 0:00:08]} 63. Ke3 {[%emt 0:00:02]} Rb3+ {[%emt 0:00:05]} 64. Kf4 {[%emt 0:00:04]} Kc5 {[%emt 0:00:03]} 65. Kxg4 {[%emt 0:00:06]} Kxc4 {[%emt 0:00:04]} 66. Kf4 {[%emt 0:00:08]} d5 {[%emt 0:00:04]} 67. g4 {[%emt 0:00:04]} d4 {[%emt 0:00:03]} 68. g5 {[%emt 0:00:04]} d3 {[%emt 0:00:02]} 69. g6 {[%emt 0:00:05]} d2 {[%emt 0:00:04]} 70. g7 {[%emt 0:00:05]} Rb8 {[%emt 0:00:03]} 71. g8=Q+ {[%emt 0:00:08]} Rxg8 {[%emt 0:00:07]} 72. Ke3 {[%emt 0:00:04]} d1=Q {[%emt 0:00:08]} 73. Kf4 {[%emt 0:20:12]} Rf8+ {[%emt 0:00:05]} 74. Kg3 {[%emt 0:00:00]} Qg1+ {[%emt 0:00:04]} 75. Kh3 {[%emt 0:00:00]} Rh8# {[%emt 0:00:03]} 0-1